[Event "Budapest Chess Festival 2024"]
[Site "Budapest"]
[Date "2024.05.28"]
[Round "6.16"]
[White "Cieslak, Patryk"]
[Black "Haring, Filip"]
[Result "0-1"]
[ECO "C78"]
[WhiteElo "2369"]
[BlackElo "2484"]
[Annotator "TA"]
[PlyCount "109"]
[EventDate "2024.05.20"]
[EventType "swiss"]
[EventCountry "HUN"]
[SourceTitle "playchess.com"]
[Source "ChessBase"]
[SourceQuality "1"]
[TimeControl "40/5400+30:1800+30"]

{[%evp 22,109,27,6,56,66,66,62,86,54,56,57,61,55,60,58,48,45,48,51,52,53,54,68,67,54,64,49,40,51,35,18,19,14,81,78,67,71,64,-7,74,-553,-547,-552,-540,-660,-633,-625,-634,-634,-641,-613,-319,-404,-368,-353,-320,-425,-337,-395,-395,-472,-333,-409,-423,-532,-639,-739,-834,-875,-758,-812,-782,-1286,-895,-5373,-5189,-6118,-5501,-1495,-1278,-29962,-29965,-29976,-29976,-29973,-29968,-29979,-29979,-29980]} 1. e4 {[%emt 0:00:34]} e5 {[%emt 0:00:39]} 2. Nf3 {[%emt 0:00:08]} Nc6 {[%emt 0:00:14]} 3. Bb5 {[%emt 0:01:42]} a6 {[%emt 0:00:18]} 4. Ba4 {[%emt 0:00:02]} Nf6 {[%emt 0:00:51]} 5. O-O {[%emt 0:00:11]} b5 {[%emt 0:01:27]} 6. Bb3 {[%emt 0:00:03]} Be7 {[%emt 0:01:21]} 7. d3 {[%emt 0:07:30]} d6 {[%emt 0:02:42]} 8. c3 {[%emt 0:00:55]} O-O {[%emt 0:02:03]} 9. h3 {[%emt 0:00:12] is more profitable than 9.Re1 at the moment.} Na5 {[%emt 0:03:33]} 10. Bc2 {[%emt 0:02:25]} c5 {[%emt 0:00:19] C55: Two Knights: 4 d3, 4 d4 exd4 5 e5 and Max Lange Attack.} 11. d4 {[%emt 0:00:17]} Qc7 {[%emt 0:05:17]} 12. d5 {[%emt 0:04:09]} c4 {[%emt 0:07:07]} (12... Nd7 $11) 13. b4 $14 {[%emt 0:00:10]} cxb3 {[%emt 0:00:29]} 14. axb3 {[%emt 0:00:03]} Nb7 $146 {[%emt 0:03:24]} ({Predecessor:} 14... Bd7 15. Be3 Rfc8 16. Bd3 Bd8 17. Nfd2 Qb8 18. Qe2 Bb6 19. b4 Nc4 20. Bxc4 bxc4 21. Bxb6 Qxb6 {1-0 Tabatabaei,M (2677)-Davtyan,A (2506) Jermuk Avagyan Memorial 2023 (3)}) 15. Bd2 {[%emt 0:12:30]} Nc5 {[%emt 0:04:25]} 16. Qe2 {[%emt 0:03:03]} g6 {[%emt 0:07:51]} 17. b4 {[%emt 0:05:57]} Ncd7 {[%emt 0:03:05]} 18. Na3 {[%emt 0:02:29]} Nb6 {[%emt 0:01:57]} 19. Bd3 {[%emt 0:02:04]} Bd7 {[%emt 0:14:21]} 20. c4 {[%emt 0:01:19]} bxc4 {[%emt 0:00:24]} 21. Nxc4 {[%emt 0:00:11]} Nxc4 {[%emt 0:07:22]} 22. Bxc4 {[%emt 0:00:55]} Bb5 {[%emt 0:00:46]} 23. Bxb5 {[%emt 0:09:18]} axb5 {[%emt 0:00:02]} 24. Rxa8 {[%emt 0:07:57]} Rxa8 {[%emt 0:00:03]} 25. Rc1 {[%emt 0:08:16]} (25. Qxb5 Nxe4 26. Qd3 Nf6 $11) 25... Qb7 {[%emt 0:01:22]} 26. Bg5 {[%emt 0:01:51]} Ra4 {[%emt 0:05:41]} 27. Qc2 {[%emt 0:05:37]} Rxb4 {[%emt 0:08:27]} (27... Qb8 $11) 28. Qc6 $1 $16 {[%emt 0:00:07]} Qb8 {[%emt 0:01:35]} (28... Qxc6 $2 29. dxc6 Ra4 (29... Rxe4 $2 30. c7 $18) (29... Rc4 $2 30. Rxc4 Ne8 31. c7 $18) 30. c7 $18) 29. Nxe5 $1 {[%emt 0:01:49]} Rxe4 {[%emt 0:07:23]} 30. Nd7 {[%emt 0:07:27]} ({White should play} 30. Qa6 $14 Rxe5 31. Rc8+ Qxc8 32. Qxc8+ Kg7 33. Bd2) 30... Qd8 {[%emt 0:06:11] [#]} (30... Nxd7 $11 31. Qxd7 Bxg5 32. Rc8+ Qxc8 33. Qxc8+ Kg7) 31. Qb7 $2 {[%emt 0:02:26][%mdl 8192]} (31. Ra1 $1 $16 {[%cal Ra1a8] stays on course.} Ra4 (31... Nxd7 32. Ra8 $11) 32. Nxf6+ Bxf6 33. Re1 Bxg5 34. Re8+ (34. Qxb5 $2 Qa5 $19) 34... Qxe8 35. Qxe8+ Kg7 36. Qxb5 Ra1+ 37. Kh2) 31... Qxd7 $19 {[%emt 0:04:46]} ({And not} 31... Nxd7 32. Rc8 Bxg5 (32... Re1+ $2 33. Kh2 $18) 33. Rxd8+ Bxd8 34. Qxd7 $11) 32. Rc8+ {[%emt 0:00:17]} Bf8 {[%emt 0:00:04]} 33. Bh6 {[%emt 0:02:21]} Re8 {[%emt 0:00:02]} ({Not} 33... Qxb7 34. Rxf8#) 34. Qxd7 {[%emt 0:04:43]} Re1+ {[%emt 0:00:04]} 35. Kh2 {[%emt 0:00:01]} Nxd7 {[%emt 0:00:05]} 36. Rd8 {[%emt 0:00:18]} f6 {[%emt 0:02:16]} 37. Bf4 {[%emt 0:01:46]} Re7 {[%emt 0:00:25]} 38. Bxd6 {[%emt 0:00:03]} Rf7 {[%emt 0:00:26]} 39. Bb4 {[%emt 0:01:19]} Kg7 {[%emt 0:00:16]} 40. d6 {[%emt 0:00:00]} Ne5 {[%emt 0:00:00]} 41. Rc8 {[%emt 0:01:38]} Rd7 {[%emt 0:06:18]} 42. Rc7 {[%emt 0:00:22]} Kf7 {[%emt 0:03:07]} 43. f4 {[%emt 0:00:27]} Bxd6 $1 {[%emt 0:00:45]} 44. Rxd7+ {[%emt 0:00:55]} Nxd7 {[%emt 0:00:05]} 45. Bxd6 {[%emt 0:00:02]} Ke6 {[%emt 0:00:48]} 46. Ba3 {[%emt 0:00:16]} Kd5 {[%emt 0:01:05]} 47. f5 {[%emt 0:01:05]} g5 {[%emt 0:06:35]} 48. h4 {[%emt 0:05:25]} gxh4 {[%emt 0:04:44]} 49. Kh3 {[%emt 0:00:02]} Ke4 {[%emt 0:00:11]} 50. Kxh4 {[%emt 0:00:12]} Kxf5 {[%emt 0:00:07]} 51. Kh5 {[%emt 0:00:12]} Ne5 {[%emt 0:01:52]} 52. Bb2 {[%emt 0:02:54]} b4 {[%emt 0:03:11]} 53. Kh6 {[%emt 0:05:12]} b3 {[%emt 0:00:14]} 54. Kxh7 {[%emt 0:00:55]} Nd3 {[%emt 0:00:51]} 55. g4+ {[%emt 0:00:27]} 0-1

[Event "Budapest Chess Festival 2024"]
[Site "Budapest"]
[Date "2024.05.28"]
[Round "6.17"]
[White "Csonka, Balazs"]
[Black "Borgaonkar, Akshay"]
[Result "1/2-1/2"]
[ECO "D12"]
[WhiteElo "2480"]
[BlackElo "2372"]
[Annotator "TA"]
[PlyCount "33"]
[EventDate "2024.05.20"]
[EventType "swiss"]
[EventCountry "HUN"]
[SourceTitle "playchess.com"]
[Source "ChessBase"]
[SourceQuality "1"]
[TimeControl "40/5400+30:1800+30"]

{[%evp 11,33,22,35,20,21,17,27,10,19,7,21,-7,0,0,13,21,19,15,35,29,20,8,18,-43]} 1. d4 {[%emt 0:00:36]} d5 {[%emt 0:00:58]} 2. c4 {[%emt 0:00:08]} c6 {[%emt 0:00:13]} 3. Nf3 {[%emt 0:00:07]} Nf6 {[%emt 0:00:05]} 4. e3 {[%emt 0:00:08]} Bf5 {[%emt 0:00:15]} 5. Nc3 {[%emt 0:00:11]} e6 {[%emt 0:00:10]} 6. Nh4 {[%emt 0:00:13]} Bg6 {[%emt 0:00:19]} 7. Bd2 {[%emt 0:00:26]} Nbd7 {[%emt 0:01:03][%cal Bb8d7,Bd7b6,Bb6c4][%mdl 32]} 8. Nxg6 {[%emt 0:00:20]} hxg6 {[%emt 0:00:03]} 9. Qb3 {[%emt 0:00:10] White has an edge.} Qc7 {[%emt 0:03:58]} 10. cxd5 {[%emt 0:01:32]} exd5 {[%emt 0:00:34]} 11. h4 {[%emt 0:01:53]} Be7 {[%emt 0:11:44]} 12. Be2 {[%emt 0:00:17]} Nb6 {[%emt 0:05:58]} 13. O-O-O {[%emt 0:21:29]} a5 {[%emt 0:12:03][%cal Ba7a5,Ba5a4][%mdl 32]} 14. Kb1 {[%emt 0:02:02]} a4 {[%emt 0:06:41]} 15. Qc2 {[%emt 0:00:09]} Nc4 {[%emt 0:09:14]} 16. Bc1 {[%emt 0:09:46][%cal Oa2a3]} (16. Nxa4 $2 {perishes.} Nxd2+ 17. Rxd2 Ne4 $19) 16... Qa5 {[%emt 0:15:44]} 17. e4 {[%emt 0:25:55] A rather calm draw.   Weighted Error Value: White=0.10 (very precise) /Black=0.03 (flawless) .  Mistake:       	White=1     	---        Inaccurate:     	White=1     	---        OK:         	White=3     	Black=5} ({Better is} 17. a3 $11) 1/2-1/2

[Event "Budapest Chess Festival 2024"]
[Site "Budapest"]
[Date "2024.05.28"]
[Round "6.18"]
[White "Horvath, Adam"]
[Black "Moksh Amit Doshi"]
[Result "1-0"]
[ECO "B51"]
[WhiteElo "2448"]
[BlackElo "2359"]
[Annotator "RC"]
[PlyCount "89"]
[EventDate "2024.05.20"]
[EventType "swiss"]
[EventCountry "HUN"]
[SourceTitle "playchess.com"]
[Source "ChessBase"]
[SourceQuality "1"]
[TimeControl "40/5400+30:1800+30"]

1. e4 {[%emt 0:06:31]} c5 {[%emt 0:05:42]} 2. Nf3 {[%emt 0:00:18]} d6 {[%emt 0:00:08]} 3. Bb5+ {[%emt 0:00:21]} Nd7 {[%emt 0:00:08]} 4. O-O {[%emt 0:00:11]} a6 {[%emt 0:00:06]} 5. Be2 {[%emt 0:00:04]} Ngf6 {[%emt 0:00:20]} 6. d3 {[%emt 0:00:05]} e6 {[%emt 0:00:16]} 7. a4 {[%emt 0:00:21]} b6 {[%emt 0:00:13]} 8. Nfd2 {[%emt 0:00:10]} Be7 {[%emt 0:05:56]} 9. f4 {[%emt 0:01:05]} O-O {[%emt 0:02:12]} 10. Bf3 {[%emt 0:00:27]} Bb7 {[%emt 0:02:46]} 11. Nc3 {[%emt 0:02:34]} Qc7 {[%emt 0:03:05]} 12. g4 {[%emt 0:01:05]} Nb8 {[%emt 0:04:35]} 13. g5 {[%emt 0:00:17]} Nfd7 {[%emt 0:00:19]} 14. Bg2 {[%emt 0:00:06]} Nc6 {[%emt 0:03:05]} 15. Nc4 {[%emt 0:00:06]} Nd4 {[%emt 0:05:40]} 16. Ne2 {[%emt 0:01:26]} Nxe2+ {[%emt 0:20:23]} 17. Qxe2 {[%emt 0:00:23]} Rfe8 {[%emt 0:01:25]} 18. Ne3 {[%emt 0:03:21]} Bf8 {[%emt 0:04:41]} 19. b3 {[%emt 0:21:01]} d5 {[%emt 0:04:28]} 20. exd5 {[%emt 0:29:39]} exd5 {[%emt 0:01:36]} 21. Qf3 {[%emt 0:00:20]} Rad8 {[%emt 0:09:05]} 22. c4 {[%emt 0:10:19]} b5 {[%emt 0:02:29]} 23. axb5 {[%emt 0:06:25]} axb5 {[%emt 0:00:15]} 24. Nxd5 {[%emt 0:04:39]} Bxd5 {[%emt 0:00:30]} 25. Qxd5 {[%emt 0:00:09]} b4 {[%emt 0:09:08]} 26. Qf3 {[%emt 0:06:07]} g6 {[%emt 0:01:20]} 27. Bb2 {[%emt 0:00:03]} Qd6 {[%emt 0:01:44]} 28. Qh3 {[%emt 0:02:44]} Re2 {[%emt 0:00:47]} 29. Rab1 {[%emt 0:03:04]} Rde8 {[%emt 0:03:51]} 30. f5 {[%emt 0:00:06]} Ne5 {[%emt 0:03:29]} 31. Bd5 {[%emt 0:01:48]} gxf5 {[%emt 0:04:02]} 32. Rxf5 {[%emt 0:00:11]} Re7 {[%emt 0:00:07]} 33. Rf6 {[%emt 0:00:58]} Qd7 {[%emt 0:00:12]} 34. Qxd7 {[%emt 0:00:31]} Nxd7 {[%emt 0:00:05]} 35. Rf2 {[%emt 0:00:29]} Bg7 {[%emt 0:01:23]} 36. Bxf7+ {[%emt 0:00:06]} Kh8 {[%emt 0:00:04]} 37. Bxg7+ {[%emt 0:00:26]} Kxg7 {[%emt 0:00:05]} 38. Bd5 {[%emt 0:00:36]} R2e3 {[%emt 0:01:08]} 39. Ra1 {[%emt 0:00:38]} Kg6 {[%emt 0:00:40]} 40. Ra8 {[%emt 0:00:00]} Kxg5 {[%emt 0:00:00]} 41. Rg8+ {[%emt 0:04:25]} Kh6 {[%emt 0:03:14]} 42. Rf4 {[%emt 0:07:46]} Re1+ {[%emt 0:04:28]} 43. Kg2 {[%emt 0:00:08]} R1e2+ {[%emt 0:03:32]} 44. Kh3 {[%emt 0:00:54]} R2e5 {[%emt 0:13:01]} 45. Bf3 {[%emt 0:00:31]} 1-0

[Event "Budapest Chess Festival 2024"]
[Site "Budapest"]
[Date "2024.05.28"]
[Round "6.19"]
[White "Jeet, Jain"]
[Black "Deuer, Marius"]
[Result "0-1"]
[ECO "B12"]
[WhiteElo "2332"]
[BlackElo "2436"]
[Annotator "RC"]
[PlyCount "104"]
[EventDate "2024.05.20"]
[EventType "swiss"]
[EventCountry "HUN"]
[SourceTitle "playchess.com"]
[Source "ChessBase"]
[SourceQuality "1"]
[TimeControl "40/5400+30:1800+30"]

1. e4 {[%emt 0:00:34]} c6 {[%emt 0:00:36]} 2. d4 {[%emt 0:00:06]} d5 {[%emt 0:00:04]} 3. e5 {[%emt 0:00:04]} Bf5 {[%emt 0:00:05]} 4. h4 {[%emt 0:00:06]} h6 {[%emt 0:00:51]} 5. Nc3 {[%emt 0:02:07]} e6 {[%emt 0:00:07]} 6. g4 {[%emt 0:04:27]} Bh7 {[%emt 0:00:08]} 7. Bd3 {[%emt 0:00:36]} Bxd3 {[%emt 0:00:14]} 8. Qxd3 {[%emt 0:00:09]} c5 {[%emt 0:02:26]} 9. Nce2 {[%emt 0:01:05]} cxd4 {[%emt 0:00:33]} 10. Nxd4 {[%emt 0:01:13]} Bc5 {[%emt 0:00:10]} 11. c3 {[%emt 0:17:59]} h5 {[%emt 0:13:39]} 12. gxh5 {[%emt 0:09:28]} Rxh5 {[%emt 0:00:48]} 13. Ngf3 {[%emt 0:00:17]} Bxd4 {[%emt 0:12:37]} 14. cxd4 {[%emt 0:01:54]} Ne7 {[%emt 0:00:41]} 15. Bg5 {[%emt 0:08:24]} Qa5+ {[%emt 0:03:15]} 16. Ke2 {[%emt 0:03:28]} Nf5 {[%emt 0:19:38]} 17. b4 {[%emt 0:01:30]} Qxb4 {[%emt 0:13:40]} 18. Rab1 {[%emt 0:17:30]} Qa4 {[%emt 0:01:59]} 19. Rhc1 {[%emt 0:01:43]} Nc6 {[%emt 0:05:29]} 20. Rxb7 {[%emt 0:00:40]} Kf8 {[%emt 0:00:41]} 21. Rc7 {[%emt 0:03:15]} Ncxd4+ {[%emt 0:04:04]} 22. Nxd4 {[%emt 0:00:12]} Rxg5 {[%emt 0:02:20]} 23. hxg5 {[%emt 0:06:56]} Nxd4+ {[%emt 0:02:43]} 24. Kf1 {[%emt 0:00:47]} Nf5 {[%emt 0:00:26]} 25. Qb3 {[%emt 0:14:06]} Qa6+ {[%emt 0:01:50]} 26. Kg2 {[%emt 0:00:42]} Nh4+ {[%emt 0:03:35]} 27. Kg3 {[%emt 0:02:43]} Nf5+ {[%emt 0:00:15]} 28. Kh2 {[%emt 0:01:08]} Kg8 {[%emt 0:02:04]} 29. Qh3 {[%emt 0:00:52]} Rf8 {[%emt 0:01:12]} 30. R7c2 {[%emt 0:00:15]} Qa4 {[%emt 0:02:17]} 31. Rc8 {[%emt 0:00:38]} Qf4+ {[%emt 0:01:18]} 32. Kh1 {[%emt 0:00:08]} Qxe5 {[%emt 0:01:39]} 33. Qa3 {[%emt 0:00:18]} Qe4+ {[%emt 0:01:08]} 34. Kg1 {[%emt 0:00:01]} Qg4+ {[%emt 0:00:29]} 35. Kf1 {[%emt 0:00:04]} Rxc8 {[%emt 0:00:05]} 36. Rxc8+ {[%emt 0:00:02]} Kh7 {[%emt 0:00:01]} 37. Qxa7 {[%emt 0:01:03]} Qd1+ {[%emt 0:01:48]} 38. Kg2 {[%emt 0:00:01]} Qg4+ {[%emt 0:00:51]} 39. Kf1 {[%emt 0:00:02]} Qd1+ {[%emt 0:03:29]} 40. Kg2 {[%emt 0:00:00]} Nh4+ {[%emt 0:00:00]} 41. Kg3 {[%emt 0:02:41]} Qh1 {[%emt 0:11:34]} 42. f3 {[%emt 0:00:46]} Kg6 {[%emt 0:10:39]} 43. Rf8 {[%emt 0:03:40]} Qe1+ {[%emt 0:02:39]} 44. Kh3 {[%emt 0:02:43]} Nf5 {[%emt 0:02:01]} 45. Qxf7+ {[%emt 0:05:41]} Kxg5 {[%emt 0:00:08]} 46. f4+ {[%emt 0:04:27]} Kxf4 {[%emt 0:00:02]} 47. Kg2 {[%emt 0:00:12]} Qe2+ {[%emt 0:02:30]} 48. Kg1 {[%emt 0:01:14]} Qe1+ {[%emt 0:02:19]} 49. Kg2 {[%emt 0:00:19]} Qe2+ {[%emt 0:00:05]} 50. Kg1 {[%emt 0:00:03]} g5 {[%emt 0:02:49]} 51. Re8 {[%emt 0:02:00]} Kf3 {[%emt 0:01:06]} 52. Qh5+ {[%emt 0:02:55]} g4 {[%emt 0:00:05]} 0-1

[Event "Budapest Chess Festival 2024"]
[Site "Budapest"]
[Date "2024.05.28"]
[Round "6.20"]
[White "Gschnitzer, Adrian"]
[Black "Lohia, Sohum"]
[Result "1-0"]
[ECO "E06"]
[WhiteElo "2431"]
[BlackElo "2284"]
[Annotator "RC"]
[PlyCount "129"]
[EventDate "2024.05.20"]
[EventType "swiss"]
[EventCountry "HUN"]
[SourceTitle "playchess.com"]
[Source "ChessBase"]
[SourceQuality "1"]
[TimeControl "40/5400+30:1800+30"]

1. d4 {[%emt 0:00:35]} Nf6 {[%emt 0:00:42]} 2. c4 {[%emt 0:00:08]} e6 {[%emt 0:00:08]} 3. Nf3 {[%emt 0:00:19]} d5 {[%emt 0:00:21]} 4. g3 {[%emt 0:00:14]} Be7 {[%emt 0:00:19]} 5. Bg2 {[%emt 0:00:14]} O-O {[%emt 0:00:19]} 6. O-O {[%emt 0:00:14]} dxc4 {[%emt 0:00:13]} 7. Qc2 {[%emt 0:00:24]} b6 {[%emt 0:00:25]} 8. Bg5 {[%emt 0:01:45]} Nd5 {[%emt 0:00:53]} 9. Bxe7 {[%emt 0:00:32]} Qxe7 {[%emt 0:00:12]} 10. Nbd2 {[%emt 0:09:44]} b5 {[%emt 0:02:39]} 11. h4 {[%emt 0:00:52]} Bb7 {[%emt 0:03:31]} 12. b3 {[%emt 0:06:52]} c5 {[%emt 0:27:25]} 13. bxc4 {[%emt 0:05:36]} bxc4 {[%emt 0:00:30]} 14. dxc5 {[%emt 0:16:25]} Nd7 {[%emt 0:04:35]} 15. e4 {[%emt 0:14:31]} N5f6 {[%emt 0:13:32]} 16. e5 {[%emt 0:02:58]} Nd5 {[%emt 0:00:29]} 17. Rab1 {[%emt 0:06:33]} Nxc5 {[%emt 0:02:36]} 18. Nxc4 {[%emt 0:04:39]} Ba6 {[%emt 0:05:09]} 19. Rfc1 {[%emt 0:00:14]} Rab8 {[%emt 0:06:44]} 20. Rxb8 {[%emt 0:04:03]} Rxb8 {[%emt 0:00:34]} 21. Na5 {[%emt 0:00:03]} Nd3 {[%emt 0:03:36]} 22. Nc6 {[%emt 0:09:26]} Qc7 {[%emt 0:00:09]} 23. Nxb8 {[%emt 0:01:19]} Nxc1 {[%emt 0:00:08]} 24. Qxc7 {[%emt 0:00:46]} Nxc7 {[%emt 0:00:05]} 25. Nxa6 {[%emt 0:01:57]} Nxa6 {[%emt 0:00:05]} 26. a3 {[%emt 0:01:21]} Nc5 {[%emt 0:01:49]} 27. Nd4 {[%emt 0:01:48]} a5 {[%emt 0:02:06]} 28. f4 {[%emt 0:00:06]} h6 {[%emt 0:12:29]} 29. h5 {[%emt 0:01:34]} g5 {[%emt 0:03:23]} 30. hxg6 {[%emt 0:03:13]} fxg6 {[%emt 0:00:06]} 31. Bf1 {[%emt 0:01:29]} Kf7 {[%emt 0:06:18]} 32. Kf2 {[%emt 0:01:09]} a4 {[%emt 0:03:26]} 33. Ke3 {[%emt 0:00:34]} N1b3 {[%emt 0:00:58]} 34. Bc4 {[%emt 0:02:37]} Na5 {[%emt 0:00:18]} 35. Bb5 {[%emt 0:01:57]} g5 {[%emt 0:00:32]} 36. fxg5 {[%emt 0:00:45]} hxg5 {[%emt 0:00:01]} 37. Nc6 {[%emt 0:00:22]} Nab3 {[%emt 0:00:37]} 38. g4 {[%emt 0:00:53]} Kf8 {[%emt 0:01:10]} 39. Nd4 {[%emt 0:00:53]} Kf7 {[%emt 0:00:48]} 40. Nc6 {[%emt 0:00:00]} Kf8 {[%emt 0:00:00]} 41. Nd4 {[%emt 0:14:33]} Kf7 {[%emt 0:02:16]} 42. Ne2 {[%emt 0:03:47]} Na1 {[%emt 0:14:14]} 43. Kd4 {[%emt 0:00:41]} Nab3+ {[%emt 0:02:40]} 44. Kc4 {[%emt 0:00:20]} Nb7 {[%emt 0:02:32]} 45. Bxa4 {[%emt 0:01:39]} Nd2+ {[%emt 0:00:12]} 46. Kb4 {[%emt 0:02:45]} Nd8 {[%emt 0:04:37]} 47. Nd4 {[%emt 0:00:20]} Nf1 {[%emt 0:01:21]} 48. Bb5 {[%emt 0:02:53]} Ne3 {[%emt 0:00:13]} 49. a4 {[%emt 0:01:30]} Nd5+ {[%emt 0:03:12]} 50. Ka3 {[%emt 0:02:40]} Ke7 {[%emt 0:01:27]} 51. a5 {[%emt 0:01:32]} Nf7 {[%emt 0:00:32]} 52. Nc6+ {[%emt 0:02:13]} Kf8 {[%emt 0:01:29]} 53. a6 {[%emt 0:00:14]} Nc7 {[%emt 0:00:31]} 54. Be2 {[%emt 0:01:56]} Ke8 {[%emt 0:00:34]} 55. Kb4 {[%emt 0:00:16]} Kd7 {[%emt 0:00:45]} 56. Kc5 {[%emt 0:00:16]} Kc8 {[%emt 0:00:32]} 57. a7 {[%emt 0:01:03]} Kb7 {[%emt 0:00:21]} 58. Bf3 {[%emt 0:00:02]} Na6+ {[%emt 0:00:56]} 59. Kc4 {[%emt 0:00:33]} Nh6 {[%emt 0:00:52]} 60. Kb5 {[%emt 0:00:23]} Nc7+ {[%emt 0:00:10]} 61. Kc5 {[%emt 0:00:11]} Ne8 {[%emt 0:00:45]} 62. Be2 {[%emt 0:01:44]} Nc7 {[%emt 0:00:40]} 63. Kd6 {[%emt 0:00:15]} Nf7+ {[%emt 0:01:01]} 64. Kd7 {[%emt 0:00:13]} Na8 {[%emt 0:00:44]} 65. Bf3 {[%emt 0:00:29]} 1-0

[Event "Budapest Chess Festival 2024"]
[Site "Budapest"]
[Date "2024.05.29"]
[Round "7.1"]
[White "Onyshchuk, Volodymyr"]
[Black "Ivanisevic, Ivan"]
[Result "0-1"]
[ECO "A06"]
[WhiteElo "2619"]
[BlackElo "2537"]
[Annotator "TA"]
[PlyCount "94"]
[EventDate "2024.05.20"]
[EventType "swiss"]
[EventCountry "HUN"]
[SourceTitle "playchess.com"]
[Source "ChessBase"]
[SourceQuality "1"]
[TimeControl "40/5400+30:1800+30"]

{[%evp 31,94,-47,-9,-42,-43,-38,-33,-50,-43,-71,-72,-80,-87,-78,-75,-68,-16,-14,-15,-22,-13,-32,0,-37,-34,-106,-104,-106,-103,-330,-211,-269,-78,-59,-73,-79,-78,-77,-65,-83,-70,-131,-136,-197,-211,-194,-189,-461,-514,-571,-583,-575,-562,-550,-520,-651,-683,-5895,-4990,-6179,-5883,-7487,-5895,-4702,-4132]} 1. Nf3 {[%emt 0:00:49]} d5 {[%emt 0:02:56]} 2. g3 {[%emt 0:00:10]} Nc6 {[%emt 0:01:15]} 3. d4 {[%emt 0:01:27]} Bf5 {[%emt 0:00:18]} 4. Bg2 {[%emt 0:00:16]} Nb4 {[%emt 0:00:11]} 5. Na3 {[%emt 0:00:14]} e6 {[%emt 0:00:06]} 6. c3 {[%emt 0:01:15] D02: 1 d4 d5 2 Nf3 sidelines, including 2...Nf6 3 g3 and 2...Nf6 3 Bf4.} Nc6 {[%emt 0:00:09]} 7. Qb3 {[%emt 0:05:37]} Bxa3 {[%emt 0:08:04]} 8. Qxa3 {[%emt 0:03:47]} Nge7 {[%emt 0:00:53]} 9. Qb3 $146 {[%emt 0:08:35]} ({Predecessor:} 9. O-O a5 10. Nd2 a4 11. e4 Bg4 12. Re1 O-O 13. h3 Bh5 14. exd5 exd5 15. Nf1 {0-1 Arsovic,Z (2376)-Sedlak,N (2559) Belgrade Vucicevic Memorial blitz 2019 (6)}) 9... a5 {[%emt 0:00:59]} 10. Nh4 {[%emt 0:09:29]} a4 {[%emt 0:01:25]} 11. Qd1 {[%emt 0:00:06]} Bg4 {[%emt 0:00:25]} 12. h3 {[%emt 0:04:39]} Bh5 {[%emt 0:00:46]} 13. g4 {[%emt 0:01:17]} Bg6 {[%emt 0:00:21]} 14. Nxg6 {[%emt 0:06:37]} Nxg6 {[%emt 0:00:36]} 15. Rg1 {[%emt 0:16:07]} Qd6 {[%emt 0:06:49]} 16. Qd3 {[%emt 0:13:01]} O-O {[%emt 0:05:06]} 17. Bh1 {[%emt 0:07:01]} Na5 {[%emt 0:08:07]} 18. Qg3 {[%emt 0:00:47]} Qe7 {[%emt 0:03:32]} 19. f4 {[%emt 0:02:40]} Rfe8 {[%emt 0:01:08]} 20. Qf2 {[%emt 0:01:02]} Nc4 {[%emt 0:02:14]} 21. e4 {[%emt 0:04:43]} dxe4 {[%emt 0:01:15]} 22. Bxe4 {[%emt 0:00:05]} e5 {[%emt 0:25:28]} 23. fxe5 {[%emt 0:00:06] [#]} (23. dxe5 $2 Ncxe5 24. fxe5 Qxe5 $19) 23... c5 {[%emt 0:00:07]} (23... Ngxe5 $1 $15 24. Kd1 (24. dxe5 $2 Qxe5 25. Qe2 Qxe4 $19) 24... Nd6) 24. Kf1 $1 $11 {[%emt 0:01:44]} (24. dxc5 $2 Qxe5 25. Qf5 Qxe4+ $19) 24... cxd4 {[%emt 0:03:44]} 25. cxd4 {[%emt 0:00:16]} a3 {[%emt 0:04:08]} 26. bxa3 {[%emt 0:01:23]} Ncxe5 {[%emt 0:03:48]} (26... Ngxe5 {seems wilder.} 27. Rg3 Rad8 28. Bg2 Nc6) 27. Rb1 {[%emt 0:01:07]} (27. dxe5 Qxe5 28. Bxb7 Qb5+ (28... Qxa1 $2 29. Kg2 $19) 29. Kg2 Qxb7+ 30. Kh2 Qb5 $19) (27. Rg3 $5 Nc4 28. Bd5 $11) 27... Nc6 {[%emt 0:01:03]} 28. Bxc6 {[%emt 0:02:17]} ({Better is} 28. Bd3 $1 $15) 28... bxc6 $17 {[%emt 0:00:06]} 29. Rb3 {[%emt 0:00:21]} Qe4 {[%emt 0:04:16]} 30. Be3 $2 {[%emt 0:04:17]} (30. Re3 $17 Qd5 (30... Qxd4 $2 31. Rxe8+ Rxe8 32. Qxd4 $18) 31. Bd2) 30... c5 {[%emt 0:04:08]} 31. Qg2 {[%emt 0:00:30]} c4 $2 {[%emt 0:06:44]} (31... cxd4 32. Qxe4 Rxe4 33. Bd2 $19) (31... Qe7 $19 {has better winning chances.} 32. dxc5 Rab8 33. Rxb8 Rxb8) 32. Qxe4 $17 {[%emt 0:00:26]} Rxe4 {[%emt 0:00:06]} 33. Rc3 {[%emt 0:00:03] [#]} Ne7 $1 {[%emt 0:00:07]} 34. Bf2 {[%emt 0:00:43]} Ra4 {[%emt 0:00:12]} 35. Kg2 {[%emt 0:01:55]} Nd5 {[%emt 0:00:19]} 36. Rb1 {[%emt 0:01:00]} (36. Rf3 $15) 36... h5 $17 {[%emt 0:00:43]} (36... Nxc3 37. Rb8+) 37. Rb8+ {[%emt 0:02:00]} (37. Rf3 $17) 37... Kh7 $19 {[%emt 0:00:05]} 38. Rf3 {[%emt 0:00:35]} hxg4 {[%emt 0:01:46]} 39. Rxf7 $2 {[%emt 0:00:28]} (39. hxg4 Rxg4+ 40. Kh3) 39... gxh3+ $19 {[%emt 0:00:59]} (39... Rxa3 $2 40. hxg4 Rxg4+ 41. Kf1 $19) 40. Kxh3 {[%emt 0:00:00]} Rxa3+ {[%emt 0:00:00]} 41. Kh2 {[%emt 0:04:21]} Rg4 {[%emt 0:05:40]} 42. Rb2 {[%emt 0:07:18]} Rd3 {[%emt 0:02:36]} 43. Be1 {[%emt 0:07:23]} Nf4 {[%emt 0:02:43]} ({Stronger than} 43... Rgxd4 44. Rg2 $11) 44. Kh1 {[%emt 0:06:17]} Rd1 {[%emt 0:02:00]} 45. Re7 {[%emt 0:00:25]} Nd3 {[%emt 0:00:13]} (45... Rxd4 46. Rh2+ Kg6 47. Bc3 Rd1+ 48. Re1 $19) 46. Rh2+ {[%emt 0:00:36]} Kg6 {[%emt 0:00:19]} 47. Rhe2 {[%emt 0:00:53]} c3 {[%emt 0:00:06]} ({Less strong is} 47... Rxd4 48. Kh2 $15) 0-1